{"text_format":"1","workbook":"xlsx","n_sheets":3,"sheets":["Feuil1","Feuil2","Feuil3"],"not_rendered":{"charts":0,"images":0,"macros":1,"external_links":0,"defined_names":12,"comments":0,"pivot_tables":0},"unopened":[],"bounds":{"document_bytes":16777216,"sheet_cells":100000,"rows_first":2000,"rows_last":500,"rows_between":2000,"halvings":0,"cell_chars":16384,"cell_head_chars":4096},"cells_cut":0,"cells_raw":0,"read":"whole","date_system":"1900"}

{"sheet":"Feuil1","index":0,"n_rows":34,"n_cols":11,"rows_kept":34,"cut":false,"hidden":false,"merged":[]}
[]
[null,"Clients"]
[]
[]
[null,"Menu","Quantité","Prix","Total"]
[null,null,null,null,{"$f":"SUM(C6*D6)","v":0}]
[null,null,null,null,{"$f":"SUM(C7*D7)","v":0}]
[null,null,null,null,0]
[null,null,null,null,0]
[null,null,null,null,0]
[null,null,null,null,0]
[null,null,null,null,0]
[null,null,null,null,0]
[null,null,null,null,0]
[null,null,null,null,0]
[null,null,null,null,0,null,"Bonjour "]
[null,null,null,null,0]
[null,null,null,null,0,null,"déjà Merci pour ton travail"]
[null,null,null,null,0,null,"j'ai rajouter une colonne pour les prix du menu a la carte "]
[null,null,null,null,0,null,"le soucis c'est quelques doivent rester sinon je doit les retaper a chaque fois"]
[null,null,null,null,0]
[null,null,null,null,0,null,"alors pour le menu a 35 j'ai un supplement de prix pour "]
[null,null,null,null,0]
[null,null,null,null,0,null,"Duo de foie gras de canard entier figues et abricots",null,null,null,2]
[null,null,null,null,0,null,"homard à l'armoricaine",null,3]
[null,null,null,null,0,null,"Filet mignon de cerf flambé et mini poire passion",null,null,null,2]
[null,null,null,null,0,null,"si un client prend plusieur menu"]
[null,null,null,null,0,null," comment compabilise le prix des menu à 27 et les menu à 35"]
[null,null,null,null,0]
[null,null,null,null,0,null,"est il possible de faire une sauvegarde des toutes les commandes des clients en feuille 3"]
[null,null,null,"sous total",{"$f":"SUM(E6:E30)","v":0}]
[null,null,null,"acompte",0,null,"j'en demande encore beaucoup desolé"]
[null,null,null,"Total",{"$f":"SUM(E31-E32)","v":0}]
[null,null,null,null,null,null,"Merci"]

{"sheet":"Feuil2","index":1,"n_rows":88,"n_cols":4,"rows_kept":88,"cut":false,"hidden":false,"merged":[]}
["menu à 27 €"]
["potage"]
["Velouté d'asperges aux éclats de noix",null,null,"Velouté d'asperges aux éclats de noix"]
["ou",null,null,"Velouté de courgettes roquette et parmesan"]
["Velouté de courgettes roquette et parmesan"]
["entrée"]
["Terrine de canard aux figues et porto et sa garniture",null,null,"Terrine de canard aux figues et porto et sa garniture"]
["ou",null,null,"Marbré de saumon et saint jacques"]
["Marbré de saumon et saint jacques",null,null,"Gros ravioles à la truffe bianchetto sauce crème"]
["ou",null,null,"Noix de saint jacques et gambas dans sa crème de poireaux au vin jaune"]
["Gros ravioles à la truffe bianchetto sauce crème"]
["ou"]
["Noix de saint jacques et gambas dans sa crème de poireaux au vin jaune"]
["plat"]
["Dodine aux marrons sauce raisins",null,null,"Dodine aux marrons sauce raisins"]
["ou",null,null,"Sauté de chapon sauce vin blanc et sa rosace de légumes"]
["Sauté de chapon sauce vin blanc et sa rosace de légumes",null,null,"Courronne de Noël pommes raisins sauce foie gras"]
["ou"]
["Courronne de Noël pommes raisins sauce foie gras"]
["accompagnement au choix"]
["Gratin dauphinois",null,null,"Gratin dauphinois"]
["ou",null,null,"Pommes dauphines"]
["Pommes dauphines"]
["dessert"]
["Cabosse chocolat cœur caramel noisette",null,null,"Cabosse chocolat cœur caramel noisette"]
["ou",null,null,"Opaline mangue passion"]
["Opaline mangue passion"]
[]
["Menu à 35 €","supplément"]
["potage"]
["Velouté d'asperges aux éclats de noix",null,null,"Velouté d'asperges aux éclats de noix"]
["ou",null,null,"Velouté de courgettes roquette et parmesan"]
["Velouté de courgettes roquette et parmesan"]
["entrée froide"]
["Terrine de canard aux figues et porto et sa garniture",null,null,"Terrine de canard aux figues et porto et sa garniture"]
["ou",null,null,"Aumonière de serrano roquette parmesan"]
["Aumonière de serrano roquette parmesan",null,null,"Duo de foie gras de canard entier figues et abricots"]
["ou",null,null,"Marbré de saumon et saint jacques"]
["Duo de foie gras de canard entier figues et abricots",2]
["ou"]
["Marbré de saumon et saint jacques"]
["entrée chaude"]
["Gros ravioles à la truffe bianchetto sauce créme",null,null,"Gros ravioles à la truffe bianchetto sauce créme"]
["ou",null,null,"Noix de saint jacques et gambas dans sa crème de poireaux au vin jaune"]
["Noix de saint jacques et gambas dans sa crème de poireaux au vin jaune",null,null,"Feuilleté de foie gras façon tatins"]
["ou",null,null,"homard à l'armoricaine"]
["Feuilleté de foie gras façon tatins"]
["ou"]
["homard à l'armoricaine",3]
["plat"]
["Filet mignon de cerf flambé et mini poire passion",2,null,"Filet mignon de cerf flambé et mini poire passion"]
["ou",null,null,"Couronne de Noël pommes raisins sauce foie gras"]
["Couronne de Noël pommes raisins sauce foie gras",null,null,"Sauté de chapon sauce vin blanc et sa rosace de légumes"]
["ou",null,null,"Dodine aux marrons sauce raisins"]
["Sauté de chapon sauce vin blanc et sa rosace de légumes"]
["ou"]
["Dodine aux marrons sauce raisins"]
["accompagnement au choix"]
["Gratin dauphinois",null,null,"Gratin dauphinois"]
["ou",null,null,"Pommes dauphine"]
["Pommes dauphine",null,null,"Trio de pommes de terre aux girolles"]
["ou"]
["Trio de pommes de terre aux girolles"]
["dessert"]
["Cabosse chocolat cœur caramel noisette",null,null,"Cabosse chocolat cœur caramel noisette"]
["ou",null,null,"Opaline mangue passion"]
["Opaline mangue passion",null,null,"Assortiment de fromages"]
["ou"]
["Assortiment de fromages"]
[]
["Menu à la Carte","Prix"]
["Velouté d'asperges aux éclats de noix",3.5]
["Velouté de courgettes roquette et parmesan",3.5]
["Terrine de canard aux figues et porto et sa garniture",11]
["Marbré de saumon et saint Jacques",11]
["Aumonière de serrano roquette parmesan",11]
["Duo de foie gras de canard entier figues et abricot",13]
["Gros ravioles à la truffe bianchetto sauce crème",11]
["Noix de saint Jacques et gambas dans sa crème de poireaux au vin jaune",11]
["Feuilleté de foie gras facon tatin",11]
["Homard à l'armoricaine",14]
["Filet mignon de cerf flambé et mini poire passion",16]
["Couronne de Noël pommes raisins sauce foie gras",14]
["Sauté de chapon sauce au vin blanc et sa rosace de légumes",14]
["Dodine aux marrons sauce raisin",14]
["Cabosse chocolat cœur caramel noisette",3]
["Opaline mangue passion",3]
["Assortiment de fromage",3]

{"sheet":"Feuil3","index":2,"n_rows":0,"n_cols":0,"rows_kept":0,"cut":false,"hidden":false,"merged":[]}